Workbook

Sheet 中心極限定理
C1: 計算繰り返し回数 | E1: 1 | F1: 使い方⇒ | G1: ウェブページへ | I1: L列：標本 | R1: 平均の度数分布初期値 | T1: =H12 -> 0 | X1: 平均の度数分布初期値 | Z1: =H25 -> 2.2 | AA1: 不偏分散の標準偏差 | AC1: =_xlfn.STDEV.P(M:M) ->  | AD1: 18 | AE1: 分散の度数分布初期値 | AG1: =H38 -> 0.6
I2: M列：標本平均 | R2: 平均の度数分布間隔 | T2: =J12 -> 0.25 | X2: 平均の度数分布間隔 | Z2: =J25 -> 0.06 | AA2: √(σ2/n) | AC2: =SQRT(F6/D3) -> 0.1825741858 | AE2: 分散の度数分布間隔 | AG2: =J38 -> 0.055
C3: 標本数 | D3: 40 | E3: 試行回数 | I3: N列：標本の不変分散
R4: 度数分布 | U4: グラフ用データ | X4: 度数分布 | AA4: グラフ用データ | AE4: 度数分布 | AH4: グラフ用データ
A5: 母集団 | C5: 標本数 | E5: 母平均 | F5: 母分散 | R5: 区切りのNo. | S5: 区切りの値 | T5: 度数 | U5: X | V5: 相対度数/階級幅 | X5: 区切りのNo. | Y5: 区切りの値 | Z5: 度数 | AA5: X | AB5: 正規分布 | AC5: 相対度数/階級幅 | AE5: 区切りのNo. | AF5: 区切りの値 | AG5: 度数 | AH5: X | AI5: 相対度数/階級幅
A6: 選択関数 | B6: 1 | C6: No. | D6: データ | E6: 3 | F6: 1.333333333 | V6: =T6/T$36 ->  | Z6: 0 | AC6: =Z6/Z$36 ->  | AG6: 0 | AI6: =AG6/AG$36 -> 
C7: 1 | E7: 標本平均 | F7: 不偏分散 | G7: 標本分散 | R7: 1 | S7: =T1 -> 0 | U7: =S7+T$2/2 -> 0.125 | V7: =T7/T$36 ->  | X7: 1 | Y7: =Z1 -> 2.2 | Z7: 0 | AA7: =Y7+Z$2/2 -> 2.23 | AB7: =_xlfn.NORM.DIST(AA7,E$6,AC$2,FALSE)*Z$2 -> 1.799798845e-05 | AE7: 1 | AF7: =AG1 -> 0.6 | AG7: 0 | AH7: =(AF7+AG$2/2) -> 0.6275
C8: 2 | R8: 2 | S8: =S7+T$2 -> 0.25 | U8: =S8+T$2/2 -> 0.375 | X8: 2 | Y8: =Y7+Z$2 -> 2.26 | Z8: 0 | AA8: 2.29 | AB8: 6.818741376e-05 | AE8: 2 | AF8: =AF7+AG$2 -> 0.655 | AG8: 0 | AH8: 0.6825
C9: 3 | E9: 標本平均 の平均 | F9: 不偏分散 の平均 | G9: 標本平均 の分散 | H9: 母分散と標本平均 の分散の比 | R9: 3 | S9: 0.5 | U9: 0.625 | X9: 3 | Y9: 2.32 | Z9: 0 | AA9: 2.35 | AB9: 0.0002318892759 | AE9: 3 | AF9: 0.71 | AG9: 0 | AH9: 0.7375
C10: 4 | R10: 4 | S10: 0.75 | U10: 0.875 | X10: 4 | Y10: 2.38 | Z10: 0 | AA10: 2.41 | AB10: 0.0007078696728 | AE10: 4 | AF10: 0.765 | AG10: 0 | AH10: 0.7925
C11: 5 | E11: =AVERAGE(M:M) ->  | F11: =AVERAGE(N:N) ->  | G11: =_xlfn.VAR.P(M:M) ->  | H11: =F6/G11 ->  | R11: 5 | S11: 1 | U11: 1.125 | X11: 5 | Y11: 2.44 | Z11: 0 | AA11: 2.47 | AB11: 0.001939644521 | AE11: 5 | AF11: 0.82 | AG11: 0 | AH11: 0.8475
C12: 6 | E12: グラフの設定 | G12: 最小値： | H12: 0 | I12: 階級幅： | J12: 0.25 | R12: 6 | S12: 1.25 | U12: 1.375 | X12: 6 | Y12: 2.5 | Z12: 0 | AA12: 2.53 | AB12: 0.004770755699 | AE12: 6 | AF12: 0.875 | AG12: 0 | AH12: 0.9025
C13: 7 | R13: 7 | S13: 1.5 | U13: 1.625 | X13: 7 | Y13: 2.56 | Z13: 0 | AA13: 2.59 | AB13: 0.01053291083 | AE13: 7 | AF13: 0.93 | AG13: 0 | AH13: 0.9575
C14: 8 | R14: 8 | S14: 1.75 | U14: 1.875 | X14: 8 | Y14: 2.62 | Z14: 0 | AA14: 2.65 | AB14: 0.0208740074 | AE14: 8 | AF14: 0.985 | AG14: 0 | AH14: 1.0125
C15: 9 | R15: 9 | S15: 2 | U15: 2.125 | X15: 9 | Y15: 2.68 | Z15: 0 | AA15: 2.71 | AB15: 0.03713295016 | AE15: 9 | AF15: 1.04 | AG15: 0 | AH15: 1.0675
C16: 10 | R16: 10 | S16: 2.25 | U16: 2.375 | X16: 10 | Y16: 2.74 | Z16: 0 | AA16: 2.77 | AB16: 0.05929379837 | AE16: 10 | AF16: 1.095 | AG16: 0 | AH16: 1.1225
C17: 11 | R17: 11 | S17: 2.5 | U17: 2.625 | X17: 11 | Y17: 2.8 | Z17: 0 | AA17: 2.83 | AB17: 0.0849875453 | AE17: 11 | AF17: 1.15 | AG17: 0 | AH17: 1.1775
C18: 12 | R18: 12 | S18: 2.75 | U18: 2.875 | X18: 12 | Y18: 2.86 | Z18: 0 | AA18: 2.89 | AB18: 0.109344639 | AE18: 12 | AF18: 1.205 | AG18: 0 | AH18: 1.2325
C19: 13 | R19: 13 | S19: 3 | U19: 3.125 | X19: 13 | Y19: 2.92 | Z19: 0 | AA19: 2.95 | AB19: 0.1262803859 | AE19: 13 | AF19: 1.26 | AG19: 0 | AH19: 1.2875
C20: 14 | R20: 14 | S20: 3.25 | U20: 3.375 | X20: 14 | Y20: 2.98 | Z20: 0 | AA20: 3.01 | AB20: 0.1309093004 | AE20: 14 | AF20: 1.315 | AG20: 0 | AH20: 1.3425
C21: 15 | R21: 15 | S21: 3.5 | U21: 3.625 | X21: 15 | Y21: 3.04 | Z21: 0 | AA21: 3.07 | AB21: 0.1218151485 | AE21: 15 | AF21: 1.37 | AG21: 0 | AH21: 1.3975
C22: 16 | R22: 16 | S22: 3.75 | U22: 3.875 | X22: 16 | Y22: 3.1 | Z22: 0 | AA22: 3.13 | AB22: 0.1017485649 | AE22: 16 | AF22: 1.425 | AG22: 0 | AH22: 1.4525
C23: 17 | R23: 17 | S23: 4 | U23: 4.125 | X23: 17 | Y23: 3.16 | Z23: 0 | AA23: 3.19 | AB23: 0.07628716601 | AE23: 17 | AF23: 1.48 | AG23: 0 | AH23: 1.5075
C24: 18 | R24: 18 | S24: 4.25 | U24: 4.375 | X24: 18 | Y24: 3.22 | Z24: 0 | AA24: 3.25 | AB24: 0.05134177354 | AE24: 18 | AF24: 1.535 | AG24: 0 | AH24: 1.5625
C25: 19 | E25: グラフの設定 | G25: 最小値： | H25: 2.2 | I25: 階級幅： | J25: 0.06 | R25: 19 | S25: 4.5 | U25: 4.625 | X25: 19 | Y25: 3.28 | Z25: 0 | AA25: 3.31 | AB25: 0.03101604713 | AE25: 19 | AF25: 1.59 | AG25: 0 | AH25: 1.6175
C26: 20 | J26: 7 | R26: 20 | S26: 4.75 | U26: 4.875 | X26: 20 | Y26: 3.34 | Z26: 0 | AA26: 3.37 | AB26: 0.01681892465 | AE26: 20 | AF26: 1.645 | AG26: 0 | AH26: 1.6725
C27: 21 | R27: 21 | S27: 5 | U27: 5.125 | X27: 21 | Y27: 3.4 | Z27: 0 | AA27: 3.43 | AB27: 0.008186649518 | AE27: 21 | AF27: 1.7 | AG27: 0 | AH27: 1.7275
C28: 22 | R28: 22 | S28: 5.25 | U28: 5.375 | X28: 22 | Y28: 3.46 | Z28: 0 | AA28: 3.49 | AB28: 0.003576929389 | AE28: 22 | AF28: 1.755 | AG28: 0 | AH28: 1.7825
C29: 23 | R29: 23 | S29: 5.5 | U29: 5.625 | X29: 23 | Y29: 3.52 | Z29: 0 | AA29: 3.55 | AB29: 0.00140284837 | AE29: 23 | AF29: 1.81 | AG29: 0 | AH29: 1.8375
C30: 24 | R30: 24 | S30: 5.75 | U30: 5.875 | X30: 24 | Y30: 3.58 | Z30: 0 | AA30: 3.61 | AB30: 0.0004938639127 | AE30: 24 | AF30: 1.865 | AG30: 0 | AH30: 1.8925
C31: 25 | R31: 25 | S31: 6 | U31: 6.125 | X31: 25 | Y31: 3.64 | Z31: 0 | AA31: 3.67 | AB31: 0.0001560630354 | AE31: 25 | AF31: 1.92 | AG31: 0 | AH31: 1.9475
C32: 26 | R32: 26 | S32: 6.25 | U32: 6.375 | X32: 26 | Y32: 3.7 | Z32: 0 | AA32: 3.73 | AB32: 4.426790838e-05 | AE32: 26 | AF32: 1.975 | AG32: 0 | AH32: 2.0025
C33: 27 | R33: 27 | S33: 6.5 | U33: 6.625 | X33: 27 | Y33: 3.76 | Z33: 0 | AA33: 3.79 | AB33: 1.127130369e-05 | AE33: 27 | AF33: 2.03 | AG33: 0 | AH33: 2.0575
C34: 28 | R34: 28 | S34: 6.75 | U34: 6.875 | X34: 28 | Y34: 3.82 | Z34: 0 | AA34: 3.85 | AB34: 2.576057164e-06 | AE34: 28 | AF34: 2.085 | AG34: 0 | AH34: 2.1125
C35: 29 | R35: 29 | S35: 7 | U35: 7.125 | X35: 29 | Y35: 3.88 | Z35: 0 | AA35: 3.91 | AB35: 5.284854519e-07 | AE35: 29 | AF35: 2.14 | AG35: 0 | AH35: 2.1675
C36: 30 | R36: 合計 | T36: =SUM(T6:T35) -> 0 | V36: =SUM(V7:V35) ->  | X36: 合計 | Z36: =SUM(Z6:Z35) -> 0 | AB36: =SUM(AB7:AB35) -> 0.9999945047 | AC36: =SUM(AC7:AC35) ->  | AE36: 合計 | AG36: =SUM(AG6:AG35) -> 0 | AI36: =SUM(AI7:AI35) -> 
C37: 31
C38: 32 | E38: グラフの設定 | G38: 最小値： | H38: 0.6 | I38: 階級幅： | J38: 0.055
C39: 33 | H39: 3
C40: 34
C41: 35
C42: 36
C43: 37
C44: 38
C45: 39
C46: 40
C47: 41
C48: 42
C49: 43
C50: 44
C51: 45
C52: 46
C53: 47
C54: 48
C55: 49
C56: 50
C57: 51
C58: 52
C59: 53
C60: 54
C61: 55
C62: 56
C63: 57
C64: 58
C65: 59
C66: 60
C67: 61
C68: 62
C69: 63
C70: 64
C71: 65
C72: 66
C73: 67
C74: 68
C75: 69
C76: 70
C77: 71
C78: 72
C79: 73
C80: 74
C81: 75
C82: 76
C83: 77
C84: 78
C85: 79
C86: 80
C87: 81
C88: 82
C89: 83
C90: 84
C91: 85
C92: 86
C93: 87
C94: 88
C95: 89
C96: 90
C97: 91
C98: 92
C99: 93
C100: 94
C101: 95
C102: 96
C103: 97
C104: 98
C105: 99
C106: 100
